bitfinex/quotes_ETHUSD_20210701
["timestamp","ask_amount","ask_price","bid_price","bid_amount"]
[1625144177196,7.05325,2126.1,2125.4,0.02229717]
[1625144177993,2.86826429,2126.1,2125.4,0.02229717]
[1625144178996,0.07826528,2126.1,2125.4,0.02229717]
[1625144179347,42.1577171,2126.2,2125.4,0.02229717]
[1625144179501,42.1577171,2126.2,2125.4,2.64101411]
[1625144179742,0.04,2126.1,2125.4,2.64101411]
[1625144179845,42.1577171,2126.2,2125.4,2.64101411]
[1625144180696,49.2103271,2126.2,2125.4,2.64101411]
[1625144181151,49.2103271,2126.2,2125.4,1.411e-05]
[1625144181302,18.50503545,2126.1,2124.8,0.13304163]
[1625144181453,18.50503545,2126.1,2124.6,2.61871694]
[1625144181454,89.21095369,2126.0,2124.6,2.61871694]
[1625144181550,89.21095369,2126.0,2124.3,10.78527443]
[1625144181551,27.21679295,2125.9,2124.3,10.78527443]
[1625144181650,27.21679295,2125.9,2124.3,10.6518]
[1625144181751,11.05779,2125.1,2124.0,0.13365972]
[1625144181974,42.1577171,2125.0,2124.0,0.13365972]
[1625144182062,42.1577171,2125.0,2123.9,10.34201943]
[1625144182063,0.03712594,2124.9,2123.9,10.0247]
[1625144182261,0.03712594,2124.9,2123.8,4.35298732]
[1625144182262,0.03712594,2124.9,2123.8,4.2191144]
[1625144182460,0.04,2124.8,2123.8,4.2191144]
[1625144182561,0.01985501,2124.7,2123.8,4.2191144]
[1625144182663,0.01985501,2124.7,2123.8,6.61960611]
[1625144182764,42.1577171,2125.0,2123.8,6.61960611]
[1625144182765,0.0557549,2124.9,2123.8,6.61960611]
[1625144184064,4.0011,2125.1,2123.8,6.61960611]
[1625144184300,42.1577171,2125.0,2123.8,6.61960611]
[1625144184544,0.18,2124.9,2123.8,4.2191144]
[1625144184642,42.1577171,2125.0,2123.8,4.2191144]
[1625144184895,4.01978818,2125.1,2123.8,4.2191144]
[1625144184998,0.01868818,2125.1,2123.8,6.62023111]
[1625144185102,0.02589871,2125.5,2123.8,10.84703111]
[1625144185253,10.0573,2126.0,2123.9,0.2054234]
[1625144185348,10.0573,2126.0,2123.9,0.25]
[1625144185496,10.0573,2126.0,2124.0,0.07029178]
[1625144185596,10.0573,2126.0,2124.0,2.84985504]
[1625144185694,10.0573,2126.0,2124.1,2.15]
[1625144185797,10.0573,2126.0,2124.2,0.04682771]
[1625144185895,10.0573,2126.0,2124.1,2.15]
[1625144186002,10.0573,2126.0,2124.2,2.84985504]
[1625144186097,10.0573,2126.0,2124.8,7.05315]
[1625144186300,31.3697,2126.2,2124.8,7.05315]
[1625144186471,31.3697,2126.2,2124.9,2.84985504]
[1625144186671,0.04,2126.1,2124.9,2.84985504]
[1625144186919,0.04,2126.1,2124.8,7.05315]
[1625144186920,42.1577171,2126.0,2124.4,31.8414]
[1625144187122,0.06,2125.9,2124.4,33.8414]
[1625144187320,7.11415,2125.9,2124.5,7.05393]
[1625144187421,7.05415,2125.9,2124.5,7.05393]
[1625144187819,7.05415,2125.9,2124.5,9.72118344]
[1625144188714,42.1577171,2125.8,2124.5,9.72118344]
[1625144188865,42.1577171,2125.8,2124.4,33.8414]
[1625144188866,15.0,2125.7,2124.4,33.8414]
[1625144188961,42.1577171,2125.6,2124.5,2.0]
[1625144189060,42.1577171,2125.6,2124.4,12.5698]
[1625144189261,42.1577171,2125.6,2124.4,10.5698]
[1625144189262,0.1,2125.5,2124.4,10.5698]
[1625144189509,0.14,2125.4,2124.4,10.5698]
[1625144190011,7.19582,2125.4,2124.2,10.0454]
[1625144190111,7.05582,2125.4,2124.2,10.0454]
[1625144190213,7.05582,2125.4,2124.4,2.66725344]
[1625144190560,51.5648271,2125.7,2124.4,2.66725344]
[1625144191201,0.04,2125.6,2124.4,2.66725344]
[1625144191352,3.4591,2125.6,2124.4,2.66725344]
[1625144191450,3.4191,2125.6,2124.4,2.66725344]
[1625144192002,42.1577171,2125.5,2124.4,2.66725344]
[1625144193430,42.1077171,2125.5,2124.4,2.66725344]
[1625144193629,0.04,2125.4,2124.4,2.66725344]
[1625144194083,39.3564314,2125.5,2124.4,2.66725344]
[1625144194180,4.7132,2125.6,2124.4,2.66725344]
[1625144194381,39.3564314,2125.5,2124.4,2.66725344]
[1625144195181,46.4119714,2125.5,2124.4,2.66725344]
[1625144196451,22.05554,2125.5,2124.0,7.05614]
[1625144196549,39.4964314,2125.4,2123.9,40.951]
[1625144196646,15.0,2125.3,2123.9,40.951]
[1625144196747,0.14,2125.3,2123.9,40.951]
[1625144197045,54.3564314,2125.4,2123.9,40.901]
[1625144197545,54.3564314,2125.4,2123.9,40.851]
[1625144198154,7.05716,2124.9,2123.9,40.851]
[1625144198250,10.20936,2124.9,2123.9,20.0412]
[1625144198400,49.5657914,2124.9,2123.9,9.4071]
[1625144198702,49.5657914,2124.9,2123.8,4.2191144]
[1625144200172,42.5086314,2124.9,2123.8,6.88636784]
[1625144200271,3.1522,2124.9,2123.8,6.88636784]
[1625144200377,49.4280314,2125.4,2123.9,0.12]
[1625144200470,49.4280314,2125.4,2123.9,3.3829]
[1625144200573,49.4280314,2125.4,2123.9,3.2629]
[1625144200720,49.4280314,2125.4,2124.0,2.66725344]
[1625144201127,10.0716,2125.4,2124.5,7.05471]
[1625144201227,10.6891,2125.5,2124.5,11.32811]
[1625144201423,10.6891,2125.5,2124.6,2.66725344]
[1625144201579,31.0612,2125.7,2124.6,2.66725344]
[1625144201726,39.3564314,2125.9,2124.6,2.66725344]
[1625144202415,7.05449,2125.8,2124.8,7.05382]
[1625144202515,10.8003,2126.0,2124.8,7.05382]
[1625144202724,10.8003,2126.0,2124.9,2.66725344]
[1625144203414,17.85365,2126.0,2125.0,7.05323]
[1625144204268,17.85365,2126.0,2124.9,2.66725344]
[1625144204470,0.06,2125.9,2124.9,2.66725344]
[1625144204617,17.85365,2126.0,2124.9,2.66725344]
[1625144205516,7.05335,2126.0,2124.9,2.66725344]
[1625144205669,7.05335,2126.0,2124.9,9.72072344]
[1625144206369,10.4517,2126.4,2124.9,9.72072344]
[1625144206470,10.4517,2126.4,2125.0,0.08073709]
[1625144206569,17.50347,2126.4,2125.6,7.05143]
[1625144206718,7.05177,2126.4,2125.6,7.05143]
[1625144206869,20.7071,2126.7,2125.6,7.05143]
[1625144206966,11.75735,2126.8,2125.7,0.05747986]
[1625144207068,11.75735,2126.8,2125.7,2.66725344]
[1625144208121,7.05052,2126.9,2125.8,7.05084]
[1625144208225,35.2917114,2127.7,2125.7,5.87615089]
[1625144208325,11.75073,2128.0,2125.8,0.82138]
[1625144208424,0.15,2128.4,2126.0,0.36319628]
[1625144208575,10.1761,2128.4,2126.0,1.33450628]
[1625144208724,10.1761,2128.4,2126.3,3.87114481]
[1625144209012,10.1761,2128.4,2126.4,0.08]
[1625144209013,10.1761,2128.4,2126.5,0.31068405]
[1625144209092,10.1761,2128.4,2126.6,0.15]
[1625144209193,10.1761,2128.4,2126.7,0.01214057]
[1625144209346,10.1761,2128.4,2126.8,0.04]
[1625144209495,10.1761,2128.4,2126.9,0.15215329]
[1625144209593,10.1761,2128.4,2126.9,0.16262821]
[1625144209799,10.1761,2128.4,2127.4,7.04557]
[1625144209800,35.2917114,2128.3,2127.4,7.04557]
[1625144209894,35.2917114,2128.3,2127.2,9.394]
[1625144210796,15.0,2128.6,2127.2,9.394]
[1625144210894,50.2917114,2128.6,2127.2,9.394]
[1625144211211,7.04641,2128.4,2127.2,9.394]
[1625144211915,22.04641,2128.4,2127.2,9.394]
[1625144215294,57.3381214,2128.4,2127.2,9.394]
[1625144215495,57.3381214,2128.4,2126.8,10.21568]
[1625144215713,0.06,2128.3,2126.8,10.21568]
[1625144215915,50.2917114,2128.4,2126.8,10.21568]
[1625144216667,50.2917114,2128.4,2127.0,7.04707]
[1625144216668,7.04749,2128.1,2127.0,7.04707]
[1625144216777,15.0,2128.0,2126.8,0.821]
[1625144217020,40.17726191,2127.9,2126.8,0.821]
[1625144217121,15.0,2127.8,2126.8,0.821]
[1625144217619,0.15,2127.7,2126.8,0.821]
[1625144219126,7.05007,2127.4,2126.8,0.821]
[1625144219220,15.0,2127.3,2126.8,0.821]
[1625144219318,50.3517114,2127.3,2126.8,0.821]
[1625144219521,50.2917114,2127.3,2126.8,0.821]
[1625144219726,12.71933191,2127.9,2126.8,0.821]
[1625144219835,0.15,2127.9,2126.8,0.821]
[1625144219979,28.12302588,2128.2,2126.8,0.821]
[1625144219980,4.561943,2128.1,2126.9,0.06551388]
[1625144220081,1.00183,2127.9,2126.8,0.821]
[1625144220245,4.16095287,2128.9,2126.9,3.05069103]
[1625144220401,7.04577,2128.7,2127.0,15.28185331]
[1625144220494,4.16095287,2128.9,2128.0,3.46]
[1625144220592,62.22029026,2130.5,2128.0,3.46]
[1625144220693,0.02228756,2129.4,2128.0,3.47029711]
[1625144220799,0.02228756,2129.4,2128.1,15.15251126]
[1625144221047,0.02228756,2129.4,2129.2,3.46]
[1625144221146,0.13653255,2130.6,2129.2,6.7327]
[1625144221241,0.13653255,2130.6,2129.2,3.32436164]
[1625144221402,48.69336483,2130.7,2129.3,15.2]
[1625144221497,48.69336483,2130.7,2129.8,8.445]
[1625144221592,48.69336483,2130.7,2130.2,7.03417]
[1625144221843,48.69336483,2130.7,2130.6,7.5678]
[1625144222047,7.08646246,2131.5,2130.6,7.5678]
[1625144222148,7.08646246,2131.5,2130.6,7.57915333]
[1625144222245,7.08646246,2131.5,2130.7,0.08089715]
[1625144222529,0.84105455,2132.0,2130.7,2.28956075]
[1625144222530,0.02227977,2132.0,2130.7,2.28956075]
[1625144222631,0.02227977,2132.0,2131.1,7.76]
[1625144222722,0.02227977,2132.0,2131.2,15.0]
[1625144222820,10.4682,2133.8,2131.2,15.0]
[1625144222821,10.4682,2133.8,2131.2,15.14466029]
[1625144222925,17.4182,2133.8,2132.3,7.04180308]
[1625144223028,17.4182,2133.8,2132.4,0.15815393]
[1625144223434,17.4182,2133.8,2132.5,0.16]
[1625144223938,17.4182,2133.8,2132.4,0.15815393]
[1625144224077,0.15,2133.4,2130.9,11.71358]
[1625144224174,0.15,2133.4,2130.8,7.03142]
[1625144224273,0.15,2133.4,2130.5,0.15]
[1625144224274,20.0,2133.1,2130.5,0.15]
[1625144224439,20.0,2133.1,2129.8,0.15]
[1625144224440,46.94273426,2133.0,2129.8,0.15]
[1625144224578,67.31876247,2133.0,2129.8,0.15]
[1625144224748,67.31876247,2133.0,2129.4,0.30002372]
[1625144224749,0.16,2132.9,2129.4,0.30002372]
[1625144224903,29.3448107,2132.9,2129.4,0.30002372]
[1625144225056,30.8714,2132.9,2129.4,0.30002372]
[1625144225158,23.46,2132.6,2129.4,0.30002372]
[1625144225257,7.04017,2131.9,2129.4,0.30002372]
[1625144225349,10.23607,2131.9,2129.4,0.30002372]
[1625144225552,10.23607,2131.9,2129.5,4.0]
[1625144225649,15.38888979,2131.8,2129.5,4.0]
[1625144225751,0.58888979,2131.8,2129.3,1.006]
[1625144225952,0.38888979,2131.8,2129.6,0.15]
[1625144226154,10.0828,2131.9,2129.6,0.15]
[1625144226254,10.0828,2131.9,2129.3,6.3177]
[1625144226354,10.0828,2131.9,2129.5,0.15]
[1625144226460,10.0828,2131.9,2129.4,2.34735937]
[1625144226608,0.26216312,2131.8,2129.4,2.34735937]
[1625144226711,0.41216312,2131.8,2129.2,0.03410937]
[1625144226858,19.07216312,2131.8,2129.2,0.03410937]
[1625144226992,20.0,2131.6,2129.2,0.03410937]
[1625144227136,3.46,2130.7,2129.2,0.03410937]
[1625144227231,7.1512,2130.7,2129.2,0.03410937]
[1625144227333,3.46,2130.3,2129.2,0.03410937]
[1625144227535,1.4418,2130.4,2129.2,0.03410937]
[1625144227635,3.4749,2130.2,2129.2,0.03410937]
[1625144227736,0.25167032,2130.1,2129.2,0.03410937]
[1625144227932,0.15,2130.1,2129.2,0.03410937]
[1625144228301,0.97632056,2130.2,2129.2,0.03410937]
[1625144228302,0.11142056,2130.2,2129.2,0.03410937]
[1625144228388,0.11142056,2130.2,2129.2,4.60850937]
[1625144228537,10.2045,2130.7,2129.2,4.60850937]
[1625144229220,11.2626,2131.4,2129.2,10.78750937]
[1625144229280,11.2626,2131.4,2129.2,13.13486874]
[1625144229281,11.1126,2131.4,2129.2,13.13486874]
[1625144229425,11.1126,2131.4,2129.3,0.01075609]
[1625144229688,11.1126,2131.4,2129.2,13.13486874]
[1625144229889,11.11875301,2131.4,2129.2,13.13486874]
[1625144230192,11.1126,2131.4,2129.6,7.03482]
[1625144230290,10.6126,2131.4,2129.6,7.03482]
[1625144231193,10.6126,2131.4,2130.2,0.00773035]
[1625144231296,0.15638952,2132.1,2130.2,0.00773035]
[1625144231501,33.6795,2132.2,2130.2,0.00773035]
[1625144231503,33.6795,2132.2,2130.3,0.05607195]
[1625144232099,22.8225,2132.2,2130.4,2.49735937]
[1625144232193,22.8225,2132.2,2130.5,0.01464896]
[1625144232443,22.8225,2132.2,2130.5,9.54000896]
[1625144232593,22.8225,2132.2,2130.5,11.88736833]
[1625144232944,22.8225,2132.2,2130.5,11.87271937]
[1625144233444,11.9545,2132.2,2130.5,11.87271937]
[1625144233548,11.9545,2132.2,2130.6,0.04077848]
[1625144233735,11.9545,2132.2,2130.6,4.08607848]
[1625144233893,11.9545,2132.2,2130.7,2.34735937]
[1625144235648,11.9545,2132.2,2130.5,2.6163]
[1625144235747,11.9545,2132.2,2129.9,6.34735937]
[1625144235748,0.11530981,2132.1,2129.9,6.34735937]
[1625144235898,0.27530981,2132.1,2130.2,2.00773035]
[1625144235993,1.09498981,2132.1,2130.2,2.00773035]
[1625144236294,0.00729396,2132.0,2130.2,2.00773035]
[1625144236494,0.17118741,2131.9,2130.2,2.00773035]
[1625144236695,0.17118741,2131.9,2130.2,0.00773035]
[1625144236795,0.99086741,2131.9,2130.2,0.00773035]
[1625144236994,0.99086741,2131.9,2130.2,1.00906035]
[1625144237451,0.81968,2131.9,2130.2,1.00906035]
[1625144237551,0.14524549,2132.6,2130.2,4.17594972]
[1625144237701,11.1428,2132.7,2130.3,0.15]
[1625144237800,11.1428,2132.7,2130.3,0.20790289]
[1625144237898,11.1428,2132.7,2130.3,1.21596055]
[1625144238054,11.1428,2132.7,2130.4,2.34735937]
[1625144238147,11.1428,2132.7,2130.5,0.13525468]
[1625144238272,11.1428,2132.7,2130.5,15.28525468]
[1625144238421,11.1428,2132.7,2130.5,15.29559686]
[1625144238522,11.1428,2132.7,2130.6,2.34735937]
[1625144238621,11.1428,2132.7,2130.7,0.14665797]
[1625144238719,11.1428,2132.7,2130.7,0.29665797]
[1625144239071,11.1428,2132.7,2130.8,7.03061]
[1625144239225,11.1428,2132.7,2130.9,0.046992]
[1625144239423,11.1428,2132.7,2130.7,10.3497089]
[1625144239424,0.14,2132.6,2130.7,10.3497089]
[1625144239523,0.14,2132.6,2130.7,0.9756689]
[1625144239625,0.14,2132.6,2130.9,1.00099]
[1625144239772,11.1428,2132.7,2130.9,1.00099]
[1625144239773,0.06,2132.5,2130.9,1.00099]
[1625144239871,0.06,2132.5,2130.9,1.82025]
[1625144240322,0.15,2132.5,2130.9,1.82025]
[1625144240560,10.0797,2132.8,2130.9,1.82025]
[1625144240754,10.0797,2132.8,2131.0,4.0]
[1625144240855,0.1,2132.4,2131.0,4.0]
[1625144241006,10.0797,2132.8,2131.1,1.82007]
[1625144241765,10.0797,2132.8,2131.2,2.0]
[1625144241909,10.0797,2132.8,2131.2,76.20000467]
[1625144242055,10.0797,2132.8,2131.3,0.1542833]
[1625144242155,10.0797,2132.8,2131.4,0.81908]
[1625144242254,10.0797,2132.8,2131.5,0.10497702]
[1625144242454,10.0797,2132.8,2131.5,1.10568702]
[1625144242554,10.0797,2132.8,2131.5,1.92470702]
[1625144242658,10.0797,2132.8,2131.5,3.58660702]
[1625144242898,10.0797,2132.8,2131.7,2.0]
[1625144243002,10.0797,2132.8,2131.7,5.92914695]
[1625144243452,10.0797,2132.8,2131.7,6.92974695]
[1625144243551,10.0797,2132.8,2131.7,7.74869695]
[1625144243650,10.0797,2132.8,2131.7,9.04039695]
[1625144244001,10.0797,2132.8,2131.7,9.02565]
[1625144244103,10.0797,2132.8,2131.7,9.03266559]
[1625144244305,10.0797,2132.8,2131.7,7.02565]
[1625144244745,0.04,2132.7,2131.7,7.02565]
[1625144245152,10.0797,2132.8,2131.7,7.02565]
[1625144246452,10.0797,2132.8,2131.7,8.35465]
[1625144247450,10.0047,2132.8,2131.7,8.35465]
[1625144248501,10.0047,2132.8,2131.8,2.0]
[1625144250303,10.0047,2132.8,2131.9,7.03008]
[1625144250653,10.0047,2132.8,2131.9,7.84896]
[1625144250753,10.0047,2132.8,2131.9,0.81888]
[1625144251264,10.0047,2132.8,2132.1,3.51422]
[1625144251357,11.1707,2133.0,2132.1,3.51422]
[1625144251465,11.1707,2133.0,2132.5,7.02801]
[1625144251626,11.1707,2133.0,2132.6,8.2260111]
[1625144251802,6.95,2133.9,2132.7,1.81872]
[1625144251899,6.95,2133.9,2132.9,3.51335]
[1625144252019,6.95,2133.9,2132.9,4.76765]
[1625144252302,6.95,2133.9,2133.0,0.81846]
[1625144252501,6.95,2133.9,2133.4,7.02616]
[1625144252654,6.95,2133.9,2133.5,3.51215]
[1625144252899,0.02226785,2134.3,2133.5,0.73016013]
[1625144253901,0.02226785,2134.3,2133.9,7.0242]
[1625144254203,0.02226785,2134.3,2133.9,7.84232]
[1625144254307,0.02226785,2134.3,2133.9,0.81812]
[1625144254451,0.02226785,2134.3,2133.4,0.99982]
[1625144254557,0.02226785,2134.3,2133.2,9.36619]
[1625144254558,0.81968,2134.2,2133.2,9.36619]
[1625144254801,0.12,2134.1,2133.2,9.36619]
[1625144255005,0.81968,2134.1,2133.2,9.36619]
[1625144255255,0.81968,2134.1,2132.6,4.68305]
[1625144255361,0.81968,2134.1,2132.6,8.1959188]
[1625144255455,0.81968,2134.1,2132.6,2.0]
[1625144255611,0.12049447,2134.0,2132.4,11.70805]
[1625144255704,0.28049447,2134.0,2132.4,11.70805]
[1625144255804,0.81968,2134.1,2132.7,3.5128251]
[1625144255957,0.81968,2134.1,2132.7,6.0187251]
[1625144256859,0.81968,2134.1,2133.3,7.02559]
[1625144257007,0.81968,2134.1,2133.3,11.29849]
[1625144257959,0.81968,2134.1,2133.4,3.51162]
[1625144258062,0.81968,2134.1,2133.3,7.02559]
[1625144258165,0.81968,2134.1,2132.9,9.36833]
[1625144258260,5.50398,2134.1,2132.9,9.36833]
[1625144258532,0.04,2134.0,2132.9,9.36833]
[1625144258725,0.81968,2134.0,2132.9,9.36833]
[1625144259807,0.81968,2134.0,2132.8,18.73039]
[1625144259808,0.81968,2134.0,2132.8,9.36588]
[1625144259903,0.81968,2134.0,2132.4,11.70805]
[1625144260004,0.20194623,2133.9,2132.4,11.70805]
[1625144260107,0.208666,2133.9,2132.4,11.70805]
[1625144260505,0.20194623,2133.9,2132.4,11.70805]
[1625144260765,0.20843055,2133.9,2132.4,11.70805]
[1625144260955,0.20843055,2133.9,2132.9,7.02676]
[1625144261054,0.04,2133.9,2132.9,7.02676]
[1625144261203,0.04,2133.9,2132.8,9.36892]
[1625144261352,0.06,2133.8,2132.8,9.36892]
[1625144262408,0.04,2133.9,2132.8,9.36892]
[1625144263773,0.04,2133.9,2132.5,46.39011209]
[1625144263925,0.04,2133.9,2132.9,3.51281]
[1625144264022,0.04,2133.9,2132.5,46.39011209]
[1625144264123,4.0732,2133.9,2132.5,46.39011209]
[1625144264275,11.32812218,2133.9,2132.3,4.69026249]
[1625144264374,4.30035218,2133.9,2132.3,0.00699619]
[1625144264475,0.15,2133.8,2132.3,0.00699619]
[1625144264574,0.25547516,2133.7,2132.3,0.00699619]
[1625144264671,0.27136436,2133.7,2132.3,0.00699619]
[1625144264773,0.15,2133.6,2132.3,0.00699619]
[1625144264873,0.20500279,2133.5,2132.3,0.00699619]
[1625144265025,1.75814458,2133.5,2132.3,0.00699619]
[1625144265126,2.57782458,2133.5,2132.3,0.00699619]
[1625144265460,7.03076,2133.0,2132.3,0.00699619]
[1625144265561,12.73424,2133.0,2132.3,0.00699619]
[1625144265657,5.71018156,2133.0,2132.3,0.00699619]
[1625144265807,0.2,2132.9,2132.3,0.00699619]
[1625144265910,1.01968,2132.9,2132.3,0.00699619]
[1625144266511,0.81968,2132.9,2132.3,0.00699619]
[1625144267545,0.81968,2132.9,2132.3,7.03579619]
[1625144268045,0.81968,2132.9,2132.3,0.00699619]
[1625144268347,0.08,2132.8,2132.3,0.00699619]
[1625144268546,7.1112,2132.8,2132.3,0.00699619]
[1625144270359,0.15,2132.7,2132.3,0.00699619]
[1625144270457,22.1112,2132.8,2132.3,0.00699619]
[1625144270458,14.76118741,2132.8,2132.3,0.00699619]
[1625144270558,16.35958741,2132.8,2132.3,0.00699619]
[1625144270657,0.35,2132.7,2132.3,0.00699619]
[1625144270810,0.35648773,2132.7,2131.8,0.00683378]
[1625144270908,7.03331,2132.3,2131.8,0.00683378]
[1625144271062,26.67159741,2132.3,2131.8,0.00683378]
[1625144271158,27.49127741,2132.3,2131.8,0.00683378]
[1625144271309,21.41946741,2132.3,2131.8,0.00683378]
[1625144271509,0.2,2132.2,2132.1,0.0096468]
[1625144272809,0.2,2132.2,2132.1,0.01622514]
[1625144273152,0.2,2132.2,2132.1,0.02338119]
[1625144273861,0.81968,2132.3,2132.1,0.02338119]
[1625144276620,7.85247,2132.3,2132.1,0.02338119]
[1625144276720,0.06,2132.2,2132.1,0.02338119]
[1625144277669,1.91208,2132.3,2132.1,0.02338119]
[1625144277770,0.81968,2132.3,2132.1,0.02338119]
[1625144278753,0.12,2132.2,2132.1,0.02338119]
[1625144278909,0.81968,2132.3,2132.1,0.02338119]
[1625144281329,0.06,2132.2,2132.1,0.02338119]
[1625144281531,0.81968,2132.3,2132.1,0.02338119]
[1625144281682,0.81968,2132.3,2131.6,0.01373595]
[1625144281882,0.96968,2132.3,2131.6,0.01373595]
[1625144282333,0.2,2132.2,2131.6,0.01373595]
[1625144282581,0.15,2132.1,2131.6,0.01373595]
[1625144282786,7.03446,2132.0,2131.6,0.01373595]
[1625144282937,7.03446,2132.0,2130.6,0.02549374]
[1625144282938,0.28534025,2131.8,2130.6,0.02549374]
[1625144283088,20.0,2131.5,2130.1,0.03323016]
[1625144283306,0.02549374,2131.1,2130.1,3.016e-05]
[1625144283442,0.04016578,2131.1,2130.1,3.016e-05]
[1625144283535,15.85890578,2131.1,2130.1,3.016e-05]
[1625144283636,0.15,2131.0,2130.1,3.016e-05]
[1625144283838,0.81968,2130.9,2130.1,3.016e-05]
[1625144283938,0.1975689,2130.8,2130.1,3.016e-05]
[1625144284040,0.20510102,2130.8,2130.1,3.016e-05]
[1625144284146,0.2,2130.7,2130.1,3.016e-05]
[1625144284400,0.81968,2130.6,2130.1,3.016e-05]
[1625144285711,0.02549374,2131.1,2130.1,3.016e-05]
[1625144285961,0.02549374,2131.1,2130.6,0.81968]
[1625144286061,0.08,2131.0,2130.6,0.81968]
[1625144286261,0.02549374,2131.1,2130.6,0.81968]
[1625144288870,7.06217374,2131.1,2130.6,0.81968]
[1625144289070,3.2702,2131.0,2130.6,0.81968]
[1625144289524,3.2702,2131.0,2130.1,3.016e-05]
[1625144289525,18.2702,2131.0,2130.1,3.016e-05]
[1625144289623,0.15,2130.9,2130.1,3.016e-05]
[1625144289892,0.15775705,2130.8,2130.1,3.016e-05]
[1625144290026,7.03933,2130.6,2130.1,3.016e-05]
[1625144290179,15.10298512,2130.6,2130.1,3.016e-05]
[1625144290376,15.25298512,2130.6,2130.1,3.016e-05]
[1625144290474,5.1799,2130.5,2130.1,3.016e-05]
[1625144290677,15.0,2130.4,2130.1,3.016e-05]
[1625144291028,24.38779,2130.4,2130.1,3.016e-05]
[1625144291127,0.15,2130.3,2130.1,3.016e-05]
[1625144291676,10.2264,2130.3,2130.1,3.016e-05]
[1625144291777,15.0,2130.2,2130.1,3.016e-05]
[1625144291880,15.15,2130.2,2130.1,3.016e-05]
[1625144292027,15.15,2130.2,2129.1,0.05168352]
[1625144292132,7.04278,2129.7,2129.1,0.05168352]
[1625144292267,0.12475983,2129.6,2129.1,0.05168352]
[1625144292574,4.71279535,2129.7,2129.1,0.05168352]
[1625144292822,15.2,2129.6,2129.1,0.05168352]
[1625144292970,15.2,2129.6,2128.6,0.06166979]
[1625144293231,7.05187355,2129.1,2128.6,0.06166979]
[1625144293326,20.2474,2129.1,2128.6,0.06166979]
[1625144293420,20.369584,2129.1,2128.6,0.06166979]
[1625144293574,5.36306819,2129.1,2128.6,0.09708954]
[1625144293670,5.2474,2129.1,2128.6,0.09708954]
[1625144293768,0.2,2129.0,2128.6,0.09708954]
[1625144295169,7.04529,2128.9,2128.6,0.09708954]
[1625144297222,7.19529,2128.9,2128.6,0.09708954]
[1625144297323,7.19529,2128.9,2128.6,8.954e-05]
[1625144298340,46.96238773,2128.8,2127.6,0.08037657]
[1625144298475,67.2008556,2128.8,2127.6,0.08037657]
[1625144298576,0.07144944,2128.6,2127.6,0.08037657]
[1625144298673,0.25140399,2128.5,2127.6,0.08037657]
[1625144298825,0.45140399,2128.5,2127.6,0.08037657]
[1625144298924,0.15,2128.4,2127.6,0.08037657]
[1625144299034,0.19874257,2128.3,2127.6,0.08037657]
[1625144299134,47.14147683,2128.3,2127.6,0.08037657]
[1625144299235,47.29147683,2128.3,2127.6,0.03413683]
[1625144299439,7.05540838,2128.0,2127.6,0.03413683]
[1625144299538,11.30760838,2128.0,2127.6,0.03413683]
[1625144299636,0.10320274,2127.9,2127.6,0.03413683]
[1625144299936,0.2,2127.8,2127.6,0.03413683]
[1625144300037,0.2,2127.8,2127.6,3.683e-05]
[1625144300542,9.59808,2127.8,2127.6,3.683e-05]
[1625144300638,0.2,2127.8,2127.6,3.683e-05]
[1625144300893,0.08753567,2128.1,2127.6,3.683e-05]
[1625144301002,0.08037657,2128.1,2127.6,3.683e-05]
[1625144301091,0.08037657,2128.1,2127.6,1.38823683]
[1625144301312,0.08037657,2128.1,2127.6,6.35026682]
[1625144301812,0.08037657,2128.1,2127.1,0.08779338]
[1625144301959,3.28227657,2128.1,2127.1,0.08779338]
[1625144302160,3.40791032,2128.1,2127.1,0.08779338]
[1625144302815,9.40071,2127.7,2127.1,0.08779338]
[1625144302910,9.40071,2127.8,2127.1,0.08779338]
[1625144302911,9.39848,2127.9,2127.1,0.08779338]
[1625144303722,0.15,2127.8,2127.1,0.08779338]
[1625144303840,15.25,2127.8,2127.1,0.08779338]
[1625144303922,7.05038,2127.5,2127.1,0.08779338]
[1625144304121,7.20038,2127.5,2127.1,0.08779338]
[1625144304223,22.20038,2127.5,2127.1,0.08779338]
[1625144304324,22.20038,2127.5,2126.6,0.0931092]
[1625144304325,46.82457109,2127.4,2126.6,0.0931092]
[1625144304424,20.0,2127.3,2126.6,0.0931092]
[1625144304548,25.03475749,2127.3,2126.6,0.0931092]
[1625144304628,54.38795713,2127.2,2126.6,0.0931092]
[1625144304728,20.0,2127.1,2126.6,0.0931092]
[1625144304917,0.00672686,2127.1,2126.6,0.0931092]
[1625144305071,0.35,2127.0,2126.6,0.0931092]
[1625144305520,0.15,2127.0,2126.6,0.0931092]
[1625144307843,3.5155,2127.0,2125.8,0.02228995]
[1625144308129,0.2,2126.9,2125.8,0.02228995]
[1625144308233,0.14874095,2126.8,2125.8,0.02228995]
[1625144308429,7.36192588,2126.7,2125.8,0.02228995]
[1625144308526,7.4672083,2126.7,2125.8,0.02228995]
[1625144308679,7.36192588,2126.7,2125.8,0.02228995]
[1625144309180,7.05375,2126.4,2125.8,0.02228995]
[1625144309279,11.19925,2126.4,2125.8,0.02228995]
[1625144309878,0.16,2126.3,2125.8,0.02228995]
[1625144310326,7.05375,2126.4,2125.8,0.02228995]
[1625144311034,10.5827,2126.9,2125.8,0.02228995]
[1625144311230,10.5827,2126.9,2125.8,4.21938995]
[1625144311328,0.0931092,2127.1,2125.8,4.21938995]
[1625144311727,0.0931092,2127.1,2125.8,6.60210748]
[1625144312031,0.0931092,2127.1,2125.8,13.65108748]
[1625144312672,0.0931092,2127.1,2125.8,11.26836995]
[1625144312919,0.0931092,2127.1,2125.8,4.21938995]
[1625144313019,0.0931092,2127.1,2125.8,0.02228995]
[1625144313969,7.1436092,2127.1,2125.8,0.02228995]
[1625144314268,0.06,2127.0,2125.8,0.02228995]
[1625144314373,3.4366,2127.0,2125.8,0.02228995]
[1625144314871,18.4366,2127.0,2125.8,0.02228995]
[1625144314971,3.4366,2127.0,2125.8,0.02228995]
[1625144315073,3.3766,2127.0,2125.8,0.02228995]